[Event "Early-Titled-Tuesday-Blitz-July-09-2024"]
[Site "Chess.com"]
[Date "2024.07.09"]
[Round "6"]
[White "djano"]
[Black "MetiForce"]
[Result "0-1"]
[WhiteElo "2612"]
[BlackElo "2840"]
[TimeControl "180+1"]
[EndTime "9:09:26 PDT"]
[Termination "MetiForce won on time"]

1. Nf3 {[%clk 0:03:00.9]} 1... Nf6 {[%clk 0:02:55.3]} 2. g3 {[%clk 0:02:58.8]}
2... g6 {[%clk 0:02:55.1]} 3. b3 {[%clk 0:02:58.8]} 3... Bg7 {[%clk 0:02:55]} 4.
Bb2 {[%clk 0:02:59.1]} 4... O-O {[%clk 0:02:55.2]} 5. Bg2 {[%clk 0:02:57.5]}
5... c5 {[%clk 0:02:55.6]} 6. O-O {[%clk 0:02:57.1]} 6... Nc6 {[%clk 0:02:55.8]}
7. d4 {[%clk 0:02:56.7]} 7... Ne4 {[%clk 0:02:55.7]} 8. Nbd2 {[%clk 0:02:54.6]}
8... d5 {[%clk 0:02:55.7]} 9. e3 {[%clk 0:02:50.8]} 9... a5 {[%clk 0:02:49.3]}
10. Nxe4 {[%clk 0:02:40.9]} 10... dxe4 {[%clk 0:02:49.1]} 11. Ne5 {[%clk
0:02:37.3]} 11... Nxe5 {[%clk 0:02:40.5]} 12. dxe5 {[%clk 0:02:38.2]} 12... Qc7
{[%clk 0:02:40.6]} 13. Qd5 {[%clk 0:02:32.5]} 13... Bf5 {[%clk 0:02:37.7]} 14.
Bxe4 {[%clk 0:02:23.6]} 14... Bxe4 {[%clk 0:02:16]} 15. Qxe4 {[%clk 0:02:24.5]}
15... e6 {[%clk 0:02:12.8]} 16. a4 {[%clk 0:02:20]} 16... Rfd8 {[%clk
0:02:06.5]} 17. Rad1 {[%clk 0:02:18.6]} 17... Rac8 {[%clk 0:01:59.8]} 18. Rd3
{[%clk 0:02:07.6]} 18... Rxd3 {[%clk 0:01:59.3]} 19. cxd3 {[%clk 0:02:08.5]}
19... Rd8 {[%clk 0:01:43.3]} 20. Rc1 {[%clk 0:02:08.3]} 20... Qe7 {[%clk
0:01:23.7]} 21. Ba3 {[%clk 0:01:59.3]} 21... Qd7 {[%clk 0:01:10.1]} 22. Rc3
{[%clk 0:01:36.9]} 22... b6 {[%clk 0:01:08.5]} 23. h4 {[%clk 0:01:27.4]} 23...
h5 {[%clk 0:01:07.8]} 24. Kg2 {[%clk 0:01:27.7]} 24... Bf8 {[%clk 0:01:08]} 25.
Bb2 {[%clk 0:01:21.2]} 25... b5 {[%clk 0:00:57.6]} 26. axb5 {[%clk 0:01:18.2]}
26... Qxb5 {[%clk 0:00:56.5]} 27. Ba3 {[%clk 0:01:08.1]} 27... Rd5 {[%clk
0:00:50.1]} 28. f4 {[%clk 0:01:05.2]} 28... Qd7 {[%clk 0:00:45]} 29. Kf3 {[%clk
0:00:58.8]} 29... Kh7 {[%clk 0:00:40.7]} 30. g4 {[%clk 0:00:53.5]} 30... hxg4+
{[%clk 0:00:41.6]} 31. Kxg4 {[%clk 0:00:54.4]} 31... Kh6 {[%clk 0:00:27.6]} 32.
Bc1 {[%clk 0:00:52]} 32... Be7 {[%clk 0:00:25.1]} 33. Bd2 {[%clk 0:00:42.4]}
33... Qe8 {[%clk 0:00:22.2]} 34. Be1 {[%clk 0:00:39.7]} 34... Qh8 {[%clk
0:00:21.9]} 35. d4 {[%clk 0:00:35.9]} 35... cxd4 {[%clk 0:00:19.6]} 36. exd4
{[%clk 0:00:32.7]} 36... Kg7 {[%clk 0:00:19.9]} 37. Kh3 {[%clk 0:00:23.9]} 37...
Bb4 {[%clk 0:00:18.8]} 38. Re3 {[%clk 0:00:23.1]} 38... Bxe1 {[%clk 0:00:19.5]}
39. Rxe1 {[%clk 0:00:24]} 39... Qb8 {[%clk 0:00:19.5]} 40. Re3 {[%clk
0:00:21.1]} 40... Qc7 {[%clk 0:00:19]} 41. Qd3 {[%clk 0:00:18.8]} 41... Qc1
{[%clk 0:00:18.5]} 42. Kg2 {[%clk 0:00:18.3]} 42... Rd8 {[%clk 0:00:17.3]} 43.
Qc3 {[%clk 0:00:15.7]} 43... Qd1 {[%clk 0:00:16]} 44. Qd3 {[%clk 0:00:14.1]}
44... Qg4+ {[%clk 0:00:16.5]} 45. Rg3 {[%clk 0:00:13.7]} 45... Qxh4 {[%clk
0:00:16.2]} 46. Qe4 {[%clk 0:00:08.3]} 46... Rc8 {[%clk 0:00:15.7]} 47. Rh3
{[%clk 0:00:02.2]} 47... Qg4+ {[%clk 0:00:15.7]} 48. Rg3 {[%clk 0:00:02.8]}
48... Qd1 {[%clk 0:00:16.2]} 0-1

[Event "Early-Titled-Tuesday-Blitz-July-09-2024"]
[Site "Chess.com"]
[Date "2024.07.09"]
[Round "6"]
[White "Volodar_Murzin"]
[Black "krzyzan94"]
[Result "1-0"]
[WhiteElo "2992"]
[BlackElo "2786"]
[TimeControl "180+1"]
[EndTime "9:09:30 PDT"]
[Termination "Volodar_Murzin won by resignation"]

1. d4 {[%clk 0:02:59.4]} 1... Nf6 {[%clk 0:02:59.6]} 2. c4 {[%clk 0:02:59.6]}
2... d6 {[%clk 0:02:58]} 3. Nc3 {[%clk 0:02:59.5]} 3... e5 {[%clk 0:02:57.6]} 4.
Nf3 {[%clk 0:02:55.8]} 4... e4 {[%clk 0:02:55.4]} 5. Ng5 {[%clk 0:02:53.9]} 5...
Qe7 {[%clk 0:02:55.5]} 6. Qc2 {[%clk 0:02:48.4]} 6... Bf5 {[%clk 0:02:54.9]} 7.
f3 {[%clk 0:02:46.5]} 7... Nc6 {[%clk 0:02:44.1]} 8. e3 {[%clk 0:02:41.6]} 8...
Nxd4 {[%clk 0:02:41.1]} 9. Qa4+ {[%clk 0:02:30.4]} 9... Bd7 {[%clk 0:02:07.9]}
10. Qd1 {[%clk 0:02:27.3]} 10... Nc6 {[%clk 0:01:53]} 11. Ngxe4 {[%clk
0:02:24.4]} 11... Nxe4 {[%clk 0:01:52.1]} 12. Nxe4 {[%clk 0:02:25.3]} 12... g6
{[%clk 0:01:50.3]} 13. Nc3 {[%clk 0:02:13.7]} 13... Bg7 {[%clk 0:01:48.4]} 14.
Nd5 {[%clk 0:02:14.3]} 14... Qh4+ {[%clk 0:01:43.2]} 15. g3 {[%clk 0:02:14.3]}
15... Qd8 {[%clk 0:01:43.9]} 16. Bg2 {[%clk 0:02:12.9]} 16... O-O {[%clk
0:01:44.1]} 17. O-O {[%clk 0:02:12.9]} 17... Re8 {[%clk 0:01:44.4]} 18. f4
{[%clk 0:02:10.5]} 18... f5 {[%clk 0:01:40.4]} 19. Rb1 {[%clk 0:02:07.8]} 19...
a5 {[%clk 0:01:39.7]} 20. b3 {[%clk 0:02:06.8]} 20... Be6 {[%clk 0:01:14.3]} 21.
Qd2 {[%clk 0:02:00]} 21... Qd7 {[%clk 0:00:57.4]} 22. Bb2 {[%clk 0:01:57]} 22...
Bxd5 {[%clk 0:00:50]} 23. cxd5 {[%clk 0:01:52.2]} 23... Nb4 {[%clk 0:00:46]} 24.
a3 {[%clk 0:01:40.8]} 24... Bxb2 {[%clk 0:00:42.2]} 25. Rxb2 {[%clk 0:01:41.7]}
25... Na6 {[%clk 0:00:42.4]} 26. b4 {[%clk 0:01:41.2]} 26... axb4 {[%clk
0:00:41.9]} 27. axb4 {[%clk 0:01:42.1]} 27... Re7 {[%clk 0:00:34.7]} 28. Ra1
{[%clk 0:01:31.6]} 28... Rae8 {[%clk 0:00:34.8]} 29. Ra3 {[%clk 0:01:32.2]}
29... Qb5 {[%clk 0:00:34]} 30. Qd4 {[%clk 0:01:26.4]} 30... Nb8 {[%clk
0:00:29.3]} 31. e4 {[%clk 0:00:59.1]} 31... fxe4 {[%clk 0:00:29.1]} 32. Bh3
{[%clk 0:00:59.7]} 32... c5 {[%clk 0:00:14.7]} 33. bxc5 {[%clk 0:00:47.5]} 33...
Qxc5 {[%clk 0:00:08.1]} 34. Be6+ {[%clk 0:00:46.7]} 34... Kf8 {[%clk 0:00:04.8]}
35. Qxc5 {[%clk 0:00:47.2]} 35... dxc5 {[%clk 0:00:05.7]} 36. Re3 {[%clk
0:00:47.2]} 36... Nd7 {[%clk 0:00:04.9]} 37. Rxe4 {[%clk 0:00:44.7]} 37... Nf6
{[%clk 0:00:05.2]} 38. Rc4 {[%clk 0:00:44.8]} 38... Rc7 {[%clk 0:00:03]} 39. Rb5
{[%clk 0:00:44.1]} 39... Nd7 {[%clk 0:00:03.1]} 40. d6 {[%clk 0:00:42.7]} 40...
Rxe6 {[%clk 0:00:01.9]} 41. dxc7 {[%clk 0:00:42.9]} 41... Rc6 {[%clk 0:00:02.7]}
42. Rxb7 {[%clk 0:00:43.3]} 42... Ke7 {[%clk 0:00:02.8]} 43. Rc1 {[%clk
0:00:42]} 43... Kd6 {[%clk 0:00:02]} 44. Rd1+ {[%clk 0:00:42.2]} 44... Ke6
{[%clk 0:00:02.7]} 45. c8=Q {[%clk 0:00:42]} 45... Rxc8 {[%clk 0:00:03.1]} 46.
Rbxd7 {[%clk 0:00:42.5]} 46... c4 {[%clk 0:00:03.3]} 47. R7d2 {[%clk 0:00:43.2]}
47... Kf5 {[%clk 0:00:04.1]} 48. Rc2 {[%clk 0:00:44.1]} 48... Kg4 {[%clk
0:00:04.2]} 49. Rdc1 {[%clk 0:00:44.3]} 49... h5 {[%clk 0:00:04.7]} 50. Kg2
{[%clk 0:00:43.9]} 50... Rd8 {[%clk 0:00:04.7]} 51. h3+ {[%clk 0:00:42.6]} 51...
Kf5 {[%clk 0:00:04.8]} 52. Re1 {[%clk 0:00:42.7]} 52... Rd3 {[%clk 0:00:04.2]}
53. Re5+ {[%clk 0:00:42.9]} 53... Kf6 {[%clk 0:00:04.7]} 54. Rxc4 {[%clk
0:00:43.1]} 54... h4 {[%clk 0:00:04.9]} 55. gxh4 {[%clk 0:00:43]} 55... Kg7
{[%clk 0:00:05.5]} 56. h5 {[%clk 0:00:40.8]} 56... Kh6 {[%clk 0:00:05.3]} 57.
hxg6 {[%clk 0:00:39.3]} 57... Rd2+ {[%clk 0:00:04.2]} 58. Kf3 {[%clk 0:00:39.5]}
58... Rd3+ {[%clk 0:00:04.1]} 59. Re3 {[%clk 0:00:40.1]} 59... Rd6 {[%clk
0:00:05]} 60. f5 {[%clk 0:00:39.9]} 60... Kg5 {[%clk 0:00:04.5]} 61. Rg4+ {[%clk
0:00:39.8]} 61... Kh5 {[%clk 0:00:05]} 62. g7 {[%clk 0:00:39.5]} 62... Rf6
{[%clk 0:00:03.9]} 63. g8=Q {[%clk 0:00:39.1]} 63... Rxf5+ {[%clk 0:00:04.5]}
64. Rf4 {[%clk 0:00:38.8]} 1-0

[Event "Early-Titled-Tuesday-Blitz-July-09-2024"]
[Site "Chess.com"]
[Date "2024.07.09"]
[Round "6"]
[White "Cmorales2001"]
[Black "MusicCityMaster"]
[Result "0-1"]
[WhiteElo "2350"]
[BlackElo "2506"]
[TimeControl "180+1"]
[EndTime "9:09:31 PDT"]
[Termination "MusicCityMaster won by resignation"]

1. e4 {[%clk 0:03:00.9]} 1... e6 {[%clk 0:03:00]} 2. d4 {[%clk 0:03:00.3]} 2...
d5 {[%clk 0:03:00.5]} 3. Nd2 {[%clk 0:02:59.2]} 3... Nc6 {[%clk 0:02:54.3]} 4.
Ngf3 {[%clk 0:02:53.5]} 4... Nf6 {[%clk 0:02:54.2]} 5. e5 {[%clk 0:02:29.3]}
5... Nd7 {[%clk 0:02:53.9]} 6. Bb5 {[%clk 0:02:28.6]} 6... a6 {[%clk 0:02:51.2]}
7. Bxc6 {[%clk 0:02:19.8]} 7... bxc6 {[%clk 0:02:52.1]} 8. O-O {[%clk
0:02:19.4]} 8... a5 {[%clk 0:02:44.9]} 9. Re1 {[%clk 0:02:18]} 9... Ba6 {[%clk
0:02:43.5]} 10. b3 {[%clk 0:02:04.4]} 10... Bb4 {[%clk 0:02:37.9]} 11. Bb2
{[%clk 0:02:04.2]} 11... O-O {[%clk 0:02:36.3]} 12. a3 {[%clk 0:01:56.2]} 12...
Be7 {[%clk 0:02:32.4]} 13. c4 {[%clk 0:01:41.8]} 13... Nb6 {[%clk 0:02:21.6]}
14. cxd5 {[%clk 0:01:37.5]} 14... cxd5 {[%clk 0:02:17.7]} 15. Qc2 {[%clk
0:01:34.5]} 15... Rc8 {[%clk 0:02:14.2]} 16. Qc3 {[%clk 0:01:29]} 16... a4
{[%clk 0:02:01.1]} 17. b4 {[%clk 0:01:28.6]} 17... c6 {[%clk 0:01:52]} 18. Rac1
{[%clk 0:01:22.7]} 18... Bb5 {[%clk 0:01:51.1]} 19. Qc2 {[%clk 0:01:10.9]} 19...
Qd7 {[%clk 0:01:39.5]} 20. Qb1 {[%clk 0:00:52.9]} 20... f5 {[%clk 0:01:33.2]}
21. exf6 {[%clk 0:00:52.3]} 21... Bxf6 {[%clk 0:01:26.2]} 22. Ne5 {[%clk
0:00:51.5]} 22... Bxe5 {[%clk 0:01:25.1]} 23. Rxe5 {[%clk 0:00:50.3]} 23... Rf6
{[%clk 0:01:16.5]} 24. f3 {[%clk 0:00:24.2]} 24... Rcf8 {[%clk 0:01:12.9]} 25.
Qc2 {[%clk 0:00:23.6]} 25... Qf7 {[%clk 0:01:11.4]} 26. Qd1 {[%clk 0:00:21.9]}
26... Qg6 {[%clk 0:01:05.7]} 27. Kh1 {[%clk 0:00:21.5]} 27... Qh6 {[%clk
0:01:03.8]} 28. Qe1 {[%clk 0:00:20.5]} 28... Rg6 {[%clk 0:00:57.2]} 29. Nf1
{[%clk 0:00:19.6]} 29... Nc4 {[%clk 0:00:55.5]} 30. Re2 {[%clk 0:00:14.1]} 30...
Nd6 {[%clk 0:00:49.3]} 31. Rec2 {[%clk 0:00:14.1]} 31... Nf5 {[%clk 0:00:48.4]}
32. Kg1 {[%clk 0:00:12.1]} 32... Nh4 {[%clk 0:00:46.2]} 33. Ng3 {[%clk
0:00:11.6]} 33... Qf4 {[%clk 0:00:35.1]} 34. Rf2 {[%clk 0:00:10.1]} 34... Bc4
{[%clk 0:00:28.2]} 35. Qd2 {[%clk 0:00:08.9]} 35... Qf7 {[%clk 0:00:25.2]} 36.
Re1 {[%clk 0:00:08.3]} 36... Rf6 {[%clk 0:00:22.9]} 37. Re3 {[%clk 0:00:06.7]}
37... Ng6 {[%clk 0:00:21.6]} 38. Re1 {[%clk 0:00:05.5]} 38... Nf4 {[%clk
0:00:21.7]} 39. Kh1 {[%clk 0:00:04.7]} 39... h5 {[%clk 0:00:21.3]} 40. Nf1
{[%clk 0:00:04]} 40... h4 {[%clk 0:00:21.5]} 41. Ne3 {[%clk 0:00:03.9]} 41...
Qh5 {[%clk 0:00:19.4]} 42. h3 {[%clk 0:00:03.6]} 42... Qg5 {[%clk 0:00:18]} 43.
Ng4 {[%clk 0:00:03.1]} 43... Rg6 {[%clk 0:00:17.4]} 44. Re5 {[%clk 0:00:02]}
44... Qe7 {[%clk 0:00:15]} 45. Qc3 {[%clk 0:00:02]} 45... Rf5 {[%clk 0:00:13]}
46. Bc1 {[%clk 0:00:02.5]} 46... Rxe5 {[%clk 0:00:12.9]} 47. Nxe5 {[%clk
0:00:03.1]} 47... Rg5 {[%clk 0:00:11.3]} 48. Bxf4 {[%clk 0:00:03.5]} 48... Rf5
{[%clk 0:00:10.6]} 49. Bh2 {[%clk 0:00:03.8]} 49... Qf6 {[%clk 0:00:11.1]} 50.
Kg1 {[%clk 0:00:04.1]} 50... Qg5 {[%clk 0:00:10.5]} 51. Nxc4 {[%clk 0:00:04.5]}
51... dxc4 {[%clk 0:00:10.3]} 52. Qxc4 {[%clk 0:00:05.2]} 52... Qe3 {[%clk
0:00:10.6]} 53. Kh1 {[%clk 0:00:03.7]} 53... Qe1+ {[%clk 0:00:10.7]} 54. Bg1
{[%clk 0:00:03.2]} 54... Rg5 {[%clk 0:00:10.1]} 55. Qxc6 {[%clk 0:00:03.6]}
55... Kh7 {[%clk 0:00:10.1]} 56. Qxe6 {[%clk 0:00:03.5]} 56... Qxe6 {[%clk
0:00:09.7]} 0-1

[Event "Early-Titled-Tuesday-Blitz-July-09-2024"]
[Site "Chess.com"]
[Date "2024.07.09"]
[Round "6"]
[White "Boorchess"]
[Black "MikeSailer"]
[Result "1-0"]
[WhiteElo "2565"]
[BlackElo "2095"]
[TimeControl "180+1"]
[EndTime "9:09:31 PDT"]
[Termination "Boorchess won on time"]

1. d4 {[%clk 0:03:00.9]} 1... d5 {[%clk 0:02:59.1]} 2. c4 {[%clk 0:03:01.1]}
2... c6 {[%clk 0:02:52.1]} 3. cxd5 {[%clk 0:03:01.1]} 3... cxd5 {[%clk
0:02:52.3]} 4. Nc3 {[%clk 0:03:01.7]} 4... Nf6 {[%clk 0:02:48.6]} 5. f3 {[%clk
0:03:01.8]} 5... g6 {[%clk 0:02:39.3]} 6. e4 {[%clk 0:02:57.4]} 6... dxe4 {[%clk
0:02:39.3]} 7. fxe4 {[%clk 0:02:57.7]} 7... Bg7 {[%clk 0:02:39.5]} 8. Nf3 {[%clk
0:02:57.1]} 8... O-O {[%clk 0:02:38.3]} 9. Be2 {[%clk 0:02:55.7]} 9... Bg4
{[%clk 0:02:35.3]} 10. Be3 {[%clk 0:02:53.4]} 10... Nc6 {[%clk 0:02:34.5]} 11.
d5 {[%clk 0:02:48.5]} 11... Bxf3 {[%clk 0:02:32.2]} 12. gxf3 {[%clk 0:02:48.1]}
12... Ne5 {[%clk 0:02:22.7]} 13. Qb3 {[%clk 0:02:46.8]} 13... Qa5 {[%clk
0:02:07.5]} 14. O-O {[%clk 0:02:40.3]} 14... h5 {[%clk 0:01:57.3]} 15. Rad1
{[%clk 0:02:22.9]} 15... Qc7 {[%clk 0:01:49.4]} 16. Nb5 {[%clk 0:02:14.5]} 16...
Qd7 {[%clk 0:01:48.6]} 17. Kg2 {[%clk 0:02:09.8]} 17... a6 {[%clk 0:01:40.8]}
18. Nd4 {[%clk 0:02:03.1]} 18... Rac8 {[%clk 0:01:35.8]} 19. Rc1 {[%clk
0:01:56.7]} 19... Rxc1 {[%clk 0:01:33.6]} 20. Rxc1 {[%clk 0:01:56.1]} 20... Rc8
{[%clk 0:01:34.3]} 21. Rxc8+ {[%clk 0:01:54.7]} 21... Qxc8 {[%clk 0:01:34.2]}
22. h3 {[%clk 0:01:41]} 22... h4 {[%clk 0:01:26.5]} 23. Qc2 {[%clk 0:01:34.1]}
23... Qb8 {[%clk 0:01:23.1]} 24. Qd2 {[%clk 0:01:26.3]} 24... Nh5 {[%clk
0:01:09.5]} 25. f4 {[%clk 0:01:20]} 25... Nd7 {[%clk 0:01:00]} 26. Bxh5 {[%clk
0:01:19.4]} 26... gxh5 {[%clk 0:00:59.4]} 27. Nf5 {[%clk 0:01:12.6]} 27... Bf6
{[%clk 0:00:31.8]} 28. Kf3 {[%clk 0:01:05.9]} 28... Kf8 {[%clk 0:00:16]} 29. Bf2
{[%clk 0:00:42]} 29... b6 {[%clk 0:00:14.7]} 30. Bxh4 {[%clk 0:00:36.8]} 30...
Bxh4 {[%clk 0:00:14.4]} 31. Nxh4 {[%clk 0:00:36.8]} 31... Nc5 {[%clk 0:00:14.2]}
32. Nf5 {[%clk 0:00:34.3]} 32... e6 {[%clk 0:00:07.9]} 33. dxe6 {[%clk
0:00:34.2]} 33... fxe6 {[%clk 0:00:07.2]} 34. Qd6+ {[%clk 0:00:24.9]} 34... Qxd6
{[%clk 0:00:07.4]} 35. Nxd6 {[%clk 0:00:25.5]} 35... Nd3 {[%clk 0:00:08.2]} 36.
Nc4 {[%clk 0:00:17.1]} 36... b5 {[%clk 0:00:07.2]} 37. Na5 {[%clk 0:00:09.7]}
37... Nxb2 {[%clk 0:00:07.2]} 38. Ke3 {[%clk 0:00:10]} 38... Na4 {[%clk
0:00:06.4]} 39. Kd4 {[%clk 0:00:09.1]} 39... Ke7 {[%clk 0:00:06.6]} 40. Nc6+
{[%clk 0:00:07.7]} 40... Kd6 {[%clk 0:00:05.1]} 41. Ne5 {[%clk 0:00:07.6]} 41...
Nb6 {[%clk 0:00:01.6]} 42. Nf7+ {[%clk 0:00:07.4]} 42... Ke7 {[%clk 0:00:02.1]}
43. Ne5 {[%clk 0:00:07.3]} 43... Kd6 {[%clk 0:00:02.3]} 44. Nd3 {[%clk
0:00:05.1]} 44... Nc4 {[%clk 0:00:01.5]} 45. Nc5 {[%clk 0:00:03.8]} 45... a5
{[%clk 0:00:01.2]} 46. e5+ {[%clk 0:00:04.3]} 46... Kc6 {[%clk 0:00:01.5]} 47.
a4 {[%clk 0:00:04.2]} 1-0

[Event "Early-Titled-Tuesday-Blitz-July-09-2024"]
[Site "Chess.com"]
[Date "2024.07.09"]
[Round "6"]
[White "ozates"]
[Black "GMAkobianSTL"]
[Result "1-0"]
[WhiteElo "2623"]
[BlackElo "2804"]
[TimeControl "180+1"]
[EndTime "9:09:35 PDT"]
[Termination "ozates won on time"]

1. e4 {[%clk 0:03:00.9]} 1... d6 {[%clk 0:02:59.8]} 2. d4 {[%clk 0:03:00.6]}
2... Nf6 {[%clk 0:02:59.2]} 3. Nc3 {[%clk 0:03:01.1]} 3... c6 {[%clk 0:02:58.8]}
4. f4 {[%clk 0:02:59.3]} 4... Qa5 {[%clk 0:02:58.2]} 5. e5 {[%clk 0:02:59.8]}
5... Ne4 {[%clk 0:02:57.6]} 6. Bd2 {[%clk 0:02:58.4]} 6... Nxd2 {[%clk
0:02:57.4]} 7. Qxd2 {[%clk 0:02:58.4]} 7... d5 {[%clk 0:02:57.7]} 8. Bd3 {[%clk
0:02:57.3]} 8... e6 {[%clk 0:02:57.1]} 9. Nf3 {[%clk 0:02:56.8]} 9... c5 {[%clk
0:02:57]} 10. dxc5 {[%clk 0:02:56.4]} 10... Bxc5 {[%clk 0:02:56.5]} 11. a3
{[%clk 0:02:45.2]} 11... Nc6 {[%clk 0:02:55.3]} 12. h4 {[%clk 0:02:30.6]} 12...
Bd7 {[%clk 0:02:53.4]} 13. h5 {[%clk 0:02:30.1]} 13... h6 {[%clk 0:02:49.7]} 14.
Nb5 {[%clk 0:02:24.6]} 14... Qxd2+ {[%clk 0:02:48.5]} 15. Kxd2 {[%clk
0:02:25.5]} 15... O-O-O {[%clk 0:02:45.7]} 16. c3 {[%clk 0:02:25.7]} 16... a6
{[%clk 0:02:45.4]} 17. Nbd4 {[%clk 0:02:25.4]} 17... Kb8 {[%clk 0:02:45.2]} 18.
Rh3 {[%clk 0:02:22.7]} 18... Nxd4 {[%clk 0:02:42]} 19. cxd4 {[%clk 0:02:21.7]}
19... Be7 {[%clk 0:02:40.3]} 20. Rg3 {[%clk 0:02:20.8]} 20... Rdg8 {[%clk
0:02:35]} 21. Rh1 {[%clk 0:02:16.6]} 21... f5 {[%clk 0:02:34.8]} 22. Nh4 {[%clk
0:02:15]} 22... Bxh4 {[%clk 0:02:23.8]} 23. Rxh4 {[%clk 0:02:14.8]} 23... Be8
{[%clk 0:02:23.2]} 24. Be2 {[%clk 0:02:09.8]} 24... g5 {[%clk 0:02:17.2]} 25.
hxg6 {[%clk 0:02:10.6]} 25... Rxg6 {[%clk 0:02:16.5]} 26. Rxg6 {[%clk
0:02:06.9]} 26... Bxg6 {[%clk 0:02:16.4]} 27. Ke3 {[%clk 0:02:06.3]} 27... Kc7
{[%clk 0:02:07.6]} 28. Bh5 {[%clk 0:02:01.9]} 28... Bxh5 {[%clk 0:02:06.5]} 29.
Rxh5 {[%clk 0:02:02]} 29... Kd7 {[%clk 0:02:06]} 30. Kf3 {[%clk 0:01:57.9]}
30... Ke7 {[%clk 0:02:04]} 31. g4 {[%clk 0:01:58.5]} 31... fxg4+ {[%clk
0:02:03.8]} 32. Kxg4 {[%clk 0:01:59.4]} 32... Rg8+ {[%clk 0:02:03.8]} 33. Kf3
{[%clk 0:01:58.1]} 33... Rg6 {[%clk 0:02:03.4]} 34. Rh1 {[%clk 0:01:48.5]} 34...
Kd7 {[%clk 0:01:57.3]} 35. a4 {[%clk 0:01:21.4]} 35... a5 {[%clk 0:01:53.1]} 36.
b3 {[%clk 0:01:21.5]} 36... Ke7 {[%clk 0:01:48.8]} 37. Rh5 {[%clk 0:01:09.2]}
37... b6 {[%clk 0:01:45.3]} 38. f5 {[%clk 0:01:02.9]} 38... exf5 {[%clk
0:01:45]} 39. Kf4 {[%clk 0:01:03.1]} 39... Rc6 {[%clk 0:01:45.7]} 40. Kxf5
{[%clk 0:00:59.9]} 40... Rc3 {[%clk 0:01:45.7]} 41. Rxh6 {[%clk 0:00:58.7]}
41... Rf3+ {[%clk 0:01:45.8]} 42. Kg5 {[%clk 0:00:57]} 42... Rxb3 {[%clk
0:01:45.7]} 43. Rd6 {[%clk 0:00:53.2]} 43... Rb4 {[%clk 0:01:41.2]} 44. Rxd5
{[%clk 0:00:48.4]} 44... Rxa4 {[%clk 0:01:41.4]} 45. Kf5 {[%clk 0:00:48.8]}
45... Rc4 {[%clk 0:01:25.2]} 46. Rd6 {[%clk 0:00:44.7]} 46... a4 {[%clk
0:01:17.3]} 47. d5 {[%clk 0:00:44.7]} 47... Rc5 {[%clk 0:00:56.7]} 48. Ke4
{[%clk 0:00:22]} 48... Rc4+ {[%clk 0:00:38]} 49. Kd3 {[%clk 0:00:21.9]} 49...
Rc5 {[%clk 0:00:38]} 50. Kd4 {[%clk 0:00:20.2]} 50... Rb5 {[%clk 0:00:32.9]} 51.
Rh6 {[%clk 0:00:10.9]} 51... a3 {[%clk 0:00:33.1]} 52. Rh7+ {[%clk 0:00:11.3]}
52... Kf8 {[%clk 0:00:32.7]} 53. Ra7 {[%clk 0:00:11.8]} 53... Rb4+ {[%clk
0:00:28.4]} 54. Kc3 {[%clk 0:00:11.9]} 54... Rb5 {[%clk 0:00:28.6]} 55. Kc4
{[%clk 0:00:12.1]} 55... Rc5+ {[%clk 0:00:25]} 56. Kd4 {[%clk 0:00:12.3]} 1-0

[Event "Early-Titled-Tuesday-Blitz-July-09-2024"]
[Site "Chess.com"]
[Date "2024.07.09"]
[Round "6"]
[White "annasargsyan_m"]
[Black "Sam_ChessMood"]
[Result "0-1"]
[WhiteElo "2660"]
[BlackElo "2933"]
[TimeControl "180+1"]
[EndTime "9:09:37 PDT"]
[Termination "Sam_ChessMood won on time"]

1. e4 {[%clk 0:03:00.9]} 1... c5 {[%clk 0:02:57.6]} 2. Nf3 {[%clk 0:03:01.3]}
2... d6 {[%clk 0:02:57.9]} 3. Bb5+ {[%clk 0:02:58.6]} 3... Nd7 {[%clk
0:02:57.6]} 4. O-O {[%clk 0:02:58]} 4... a6 {[%clk 0:02:57.2]} 5. Bd3 {[%clk
0:02:57.3]} 5... Ngf6 {[%clk 0:02:55.7]} 6. c3 {[%clk 0:02:57.2]} 6... b5 {[%clk
0:02:54.7]} 7. Bc2 {[%clk 0:02:57.4]} 7... c4 {[%clk 0:02:53.1]} 8. Re1 {[%clk
0:02:57.1]} 8... e6 {[%clk 0:02:51.4]} 9. b3 {[%clk 0:02:56.3]} 9... Bb7 {[%clk
0:02:47.1]} 10. bxc4 {[%clk 0:02:56.8]} 10... bxc4 {[%clk 0:02:47]} 11. Na3
{[%clk 0:02:57.7]} 11... Qc7 {[%clk 0:02:44.3]} 12. Rb1 {[%clk 0:02:58.6]} 12...
d5 {[%clk 0:02:29.6]} 13. e5 {[%clk 0:02:49.7]} 13... Ne4 {[%clk 0:02:27.7]} 14.
Nxc4 {[%clk 0:02:22.6]} 14... Nxf2 {[%clk 0:02:27.5]} 15. Kxf2 {[%clk
0:02:19.8]} 15... dxc4 {[%clk 0:02:27]} 16. d4 {[%clk 0:02:15.1]} 16... cxd3
{[%clk 0:02:26.3]} 17. Qxd3 {[%clk 0:02:15.7]} 17... Nc5 {[%clk 0:02:19.5]} 18.
Qd4 {[%clk 0:01:58.3]} 18... Rd8 {[%clk 0:02:13.6]} 19. Qg4 {[%clk 0:01:43.5]}
19... Nd3+ {[%clk 0:01:36.2]} 20. Bxd3 {[%clk 0:01:43.3]} 20... Rxd3 {[%clk
0:01:37]} 21. Qa4+ {[%clk 0:01:43.7]} 21... Rd7 {[%clk 0:01:21.8]} 22. Rd1
{[%clk 0:01:36.4]} 22... Bc5+ {[%clk 0:01:12]} 23. Kg3 {[%clk 0:01:35.9]} 23...
Bc6 {[%clk 0:01:07.9]} 24. Rxd7 {[%clk 0:01:32.1]} 24... Bxd7 {[%clk 0:01:04.7]}
25. Qg4 {[%clk 0:01:21.1]} 25... Kf8 {[%clk 0:00:39.2]} 26. Qe4 {[%clk
0:01:08.1]} 26... Bc6 {[%clk 0:00:28.6]} 27. Qe2 {[%clk 0:00:42.3]} 27... h6
{[%clk 0:00:24]} 28. Be3 {[%clk 0:00:33.7]} 28... Bxe3 {[%clk 0:00:17.6]} 29.
Qxe3 {[%clk 0:00:33.2]} 29... Bxf3 {[%clk 0:00:17.8]} 30. gxf3 {[%clk
0:00:27.9]} 30... g6 {[%clk 0:00:17]} 31. Qe4 {[%clk 0:00:19.4]} 31... Kg7
{[%clk 0:00:16.4]} 32. Rb7 {[%clk 0:00:20]} 32... Qxc3 {[%clk 0:00:15.5]} 33.
Qf4 {[%clk 0:00:18.7]} 33... Rf8 {[%clk 0:00:15.1]} 34. Qf6+ {[%clk 0:00:17.1]}
34... Kg8 {[%clk 0:00:15.4]} 35. Qf4 {[%clk 0:00:10.9]} 35... Qe1+ {[%clk
0:00:15.2]} 36. Kg2 {[%clk 0:00:11.3]} 36... Qe2+ {[%clk 0:00:15.6]} 37. Kg3
{[%clk 0:00:11.8]} 37... h5 {[%clk 0:00:12]} 38. a4 {[%clk 0:00:07]} 38... Qf1
{[%clk 0:00:10.8]} 39. Rb4 {[%clk 0:00:02.9]} 39... Qg1+ {[%clk 0:00:09.4]} 40.
Kh3 {[%clk 0:00:03.5]} 40... Kg7 {[%clk 0:00:05.7]} 41. Qf6+ {[%clk 0:00:03.8]}
41... Kg8 {[%clk 0:00:06]} 42. Rb7 {[%clk 0:00:03.8]} 42... Qf1+ {[%clk
0:00:05.5]} 43. Kg3 {[%clk 0:00:04]} 43... Qg1+ {[%clk 0:00:05.9]} 44. Kh3
{[%clk 0:00:04.5]} 44... Qf2 {[%clk 0:00:05.9]} 45. Qf4 {[%clk 0:00:03.5]} 45...
Qf1+ {[%clk 0:00:05.5]} 46. Kg3 {[%clk 0:00:02]} 46... Qg1+ {[%clk 0:00:05.9]}
47. Kh3 {[%clk 0:00:02.6]} 47... a5 {[%clk 0:00:06.5]} 48. Qf6 {[%clk
0:00:02.3]} 48... Qf1+ {[%clk 0:00:06.1]} 49. Kg3 {[%clk 0:00:02.4]} 49... Qg1+
{[%clk 0:00:06.6]} 50. Kh3 {[%clk 0:00:03]} 50... Qf2 {[%clk 0:00:07]} 51. Qf4
{[%clk 0:00:02.3]} 51... Qc2 {[%clk 0:00:07.2]} 52. Rb5 {[%clk 0:00:02.1]} 52...
Qd1 {[%clk 0:00:06.2]} 53. Rxa5 {[%clk 0:00:01.4]} 53... Qg1 {[%clk 0:00:06.1]}
0-1